bitfinex/quotes_BTCUSD_20251226
["timestamp","ask_amount","ask_price","bid_price","bid_amount"]
[1766723655469,0.01128,88807.0,88806.0,0.11474]
[1766723656025,0.01128,88807.0,88806.0,0.11419]
[1766723656449,0.01355082,88810.0,88806.0,0.11419]
[1766723656613,0.01128,88809.0,88806.0,0.11419]
[1766723656809,0.01128082,88810.0,88807.0,0.17049186]
[1766723657011,8.2e-07,88815.0,88814.0,0.05629743]
[1766723657211,0.01355082,88824.0,88814.0,0.05629743]
[1766723657212,0.01128,88825.0,88819.0,0.11419]
[1766723657680,0.01128,88825.0,88817.0,0.0112591]
[1766723657840,0.01128,88825.0,88820.0,0.01125872]
[1766723658187,0.01128,88825.0,88820.0,0.01125731]
[1766723658536,0.01128,88825.0,88819.0,0.05629378]
[1766723658537,0.01128,88825.0,88819.0,0.01125885]
[1766723658859,0.01128,88825.0,88820.0,0.01125872]
[1766723659961,0.01128,88825.0,88822.0,0.01125847]
[1766723660171,0.00653389,88825.0,88823.0,0.05629172]
[1766723660366,0.0001,88836.0,88833.0,0.01125707]
[1766723660568,0.04504703,88846.0,88833.0,0.01125707]
[1766723660569,8.2e-07,88835.0,88833.0,0.181732]
[1766723660749,8.2e-07,88835.0,88826.0,0.01128]
[1766723660750,8.152e-05,88835.0,88826.0,0.01125796]
[1766723660956,8.152e-05,88835.0,88825.0,0.01125809]
[1766723661345,0.01125707,88833.0,88823.0,0.01125834]
[1766723661516,0.41338143,88833.0,88821.0,0.01128]
[1766723661714,0.41338143,88833.0,88823.0,0.01125834]
[1766723661913,0.40212436,88833.0,88823.0,0.01125834]
[1766723662418,0.41338143,88833.0,88824.0,0.01125821]
[1766723662819,0.00030601,88825.0,88824.0,0.01125821]
[1766723662966,0.00030601,88825.0,88822.0,0.01125847]
[1766723663167,0.41338143,88833.0,88824.0,0.01125821]
[1766723663619,0.41338143,88833.0,88823.0,0.01125834]
[1766723664184,0.01125745,88830.0,88821.0,0.01128]
[1766723664419,0.01125758,88829.0,88821.0,0.01128]
[1766723664572,0.0112572,88832.0,88822.0,0.01125847]
[1766723664773,0.40212436,88833.0,88825.0,0.01125809]
[1766723665197,0.40212436,88833.0,88827.0,0.01125783]
[1766723665399,0.06754417,88831.0,88821.0,0.01128]
[1766723665605,0.01125771,88828.0,88821.0,0.01128]
[1766723665786,0.01125758,88829.0,88821.0,0.01128]
[1766723666187,0.47373169,88831.0,88821.0,0.02253859]
[1766723666414,0.01125745,88830.0,88821.0,0.01128]
[1766723666604,0.47373169,88831.0,88821.0,0.02253859]
[1766723666804,0.01125745,88830.0,88821.0,0.01128]
[1766723667593,0.40212436,88831.0,88821.0,0.12547]
[1766723668035,0.40212436,88831.0,88822.0,0.01125847]
[1766723668523,0.00030601,88825.0,88822.0,0.01125847]
[1766723668699,0.40212436,88831.0,88825.0,0.000306]
[1766723668903,0.01125707,88833.0,88825.0,0.000306]
[1766723669097,0.40220588,88835.0,88825.0,0.000306]
[1766723669098,0.40220588,88835.0,88827.0,0.01125783]
[1766723669324,0.40220588,88835.0,88826.0,0.01125796]
[1766723669535,0.01355082,88834.0,88826.0,0.12544796]
[1766723670130,0.01355082,88834.0,88826.0,0.11419]
[1766723671728,0.02480777,88834.0,88826.0,0.11419]
[1766723673521,8.2e-07,88834.0,88826.0,0.11419]
[1766723674084,0.01125777,88834.0,88826.0,0.11419]
[1766723674572,0.01125707,88833.0,88823.0,0.01125834]
[1766723674718,0.0112572,88832.0,88823.0,0.01125834]
[1766723674922,0.00027541,88824.0,88821.0,0.12547]
[1766723675123,0.01125733,88831.0,88824.0,0.000275]
[1766723675322,0.01125733,88831.0,88821.0,0.13672859]
[1766723676105,0.0112572,88832.0,88822.0,0.01125847]
[1766723676226,0.01125733,88831.0,88821.0,0.12547]
[1766723676440,0.0112572,88832.0,88821.0,0.13672859]
[1766723676661,0.40212436,88833.0,88824.0,0.01125821]
[1766723677065,8.2e-07,88834.0,88825.0,0.12544809]
[1766723677263,8.2e-07,88834.0,88826.0,0.01125796]
[1766723677714,8.2e-07,88834.0,88825.0,0.12544809]
[1766723677914,0.05628538,88833.0,88825.0,0.11419]
[1766723678091,0.01125777,88834.0,88825.0,0.11419]
[1766723678299,0.01125707,88833.0,88825.0,0.11419]
[1766723678497,0.0112572,88832.0,88816.0,0.01125923]
[1766723678713,0.46966834,88831.0,88821.0,0.02253859]
[1766723679042,0.46966866,88831.0,88821.0,0.12547]
[1766723679458,0.01125745,88830.0,88821.0,0.12547]
[1766723679790,0.0001911,88821.0,88811.0,0.11419]
[1766723679994,0.0001911,88821.0,88808.0,0.01126024]
[1766723679995,0.01355082,88819.0,88813.0,0.11419]
[1766723680198,0.0001911,88821.0,88815.0,0.01125935]
[1766723680451,0.40212436,88823.0,88815.0,0.01125935]
[1766723680452,0.0002448,88823.0,88821.0,0.0001899]
[1766723680638,0.0002448,88823.0,88818.0,0.11419]
[1766723680800,0.0002448,88823.0,88818.0,0.12544897]
[1766723681386,0.0002448,88823.0,88818.0,0.11419]
[1766723681931,0.0002448,88823.0,88818.0,0.12544897]
[1766723682260,0.0002448,88823.0,88818.0,0.11419]
[1766723685238,0.0002448,88823.0,88818.0,0.12544897]
[1766723685439,0.0002448,88823.0,88818.0,0.11419]
[1766723685440,0.01125859,88821.0,88818.0,0.11419]
[1766723685643,0.01125847,88822.0,88818.0,0.11419]
[1766723685905,0.01125859,88821.0,88818.0,0.113945]
[1766723686323,8e-07,88823.0,88818.0,0.113945]
[1766723686539,8e-07,88823.0,88821.0,0.000549]
[1766723686742,0.01125847,88822.0,88818.0,0.113945]
[1766723687114,8e-07,88823.0,88818.0,0.113945]
[1766723687315,0.01125914,88823.0,88818.0,0.113945]
[1766723687491,0.01125847,88822.0,88818.0,0.113945]
[1766723687834,0.01125914,88823.0,88818.0,0.113945]
[1766723688419,0.01125847,88822.0,88818.0,0.113945]
[1766723688821,0.067552,88821.0,88818.0,0.113945]
[1766723689067,0.01125847,88822.0,88818.0,0.113945]
[1766723690210,0.01125859,88821.0,88818.0,0.113945]
[1766723690429,0.01125885,88819.0,88811.0,0.11732]
[1766723690857,0.0112591,88817.0,88810.0,0.01128]
[1766723691027,0.01125885,88819.0,88809.0,0.01126012]
[1766723691202,0.02480954,88820.0,88809.0,0.12858012]
[1766723691616,0.02480954,88820.0,88810.0,0.01125999]
[1766723692206,0.01355082,88820.0,88811.0,0.01125986]
[1766723692420,0.02480954,88820.0,88810.0,0.01125999]
[1766723692959,0.42688956,88820.0,88811.0,0.01125986]
[1766723693463,0.42688956,88820.0,88810.0,0.01125999]
[1766723693820,0.01125885,88819.0,88809.0,0.12858012]
[1766723694230,0.01125897,88818.0,88809.0,0.11732]
[1766723694477,0.01125885,88819.0,88809.0,0.12858012]
[1766723695039,0.41563084,88820.0,88810.0,0.01125999]
[1766723695235,0.01125885,88819.0,88809.0,0.12858012]
[1766723695690,0.42688956,88820.0,88810.0,0.01125999]
[1766723695838,0.41563084,88820.0,88811.0,0.01125986]
[1766723696041,0.01355082,88820.0,88811.0,0.01125986]
[1766723696254,0.01355082,88820.0,88812.0,0.01125973]
[1766723697139,0.01355082,88820.0,88813.0,0.01125961]
[1766723697466,8e-07,88823.0,88820.0,0.000549]
[1766723697885,8e-07,88823.0,88815.0,0.01125935]
[1766723698088,8e-07,88823.0,88816.0,0.01125923]
[1766723698418,0.01128,88822.0,88814.0,0.06755646]
[1766723698568,0.01128,88822.0,88814.0,0.01125948]
[1766723698769,0.01128,88822.0,88815.0,0.01125935]
[1766723698968,0.01128,88822.0,88814.0,0.01125948]
[1766723699180,0.01128,88822.0,88813.0,0.12857961]
[1766723699601,0.01128,88822.0,88814.0,0.01125948]
[1766723699802,0.01125859,88821.0,88813.0,0.11732]
[1766723700020,0.01128,88822.0,88813.0,0.12857961]
[1766723700810,0.02253847,88822.0,88813.0,0.11732]
[1766723700996,0.01128,88822.0,88815.0,0.01125935]
[1766723701194,0.01128,88823.0,88822.0,0.00055]
[1766723701758,0.01128,88827.0,88817.0,0.11732]
[1766723701953,0.01128,88827.0,88818.0,0.12857897]
[1766723702117,0.01128,88827.0,88819.0,0.01125885]
[1766723702315,0.01128,88827.0,88819.0,0.11732]
[1766723703355,0.01128,88827.0,88819.0,0.12857885]
[1766723703558,0.01128,88827.0,88819.0,0.11732]
[1766723704068,0.02253783,88827.0,88819.0,0.11732]
[1766723704351,0.01128,88827.0,88819.0,0.11732]
[1766723705401,0.01128,88827.0,88819.0,0.12857885]
[1766723705604,0.01128,88827.0,88819.0,0.11732]
[1766723706870,0.01125796,88826.0,88819.0,0.11732]
[1766723707051,0.02253783,88827.0,88817.0,0.0112591]
[1766723707261,0.01125796,88826.0,88817.0,0.0112591]
[1766723707469,0.02253783,88827.0,88817.0,0.0112591]
[1766723707675,0.01125809,88825.0,88813.0,0.12857961]
[1766723707876,0.01125809,88825.0,88819.0,1.0]
[1766723708078,0.01125796,88826.0,88819.0,1.0]
[1766723708455,0.01125821,88824.0,88819.0,1.0]
[1766723708849,0.01125847,88822.0,88819.0,0.75]
[1766723709048,0.05629328,88821.0,88819.0,0.374451]
[1766723709293,0.01125872,88820.0,88810.0,0.01125999]
[1766723709470,0.01125847,88822.0,88811.0,0.02253986]
[1766723709805,0.01125859,88821.0,88811.0,0.02253986]
[1766723709965,0.01128,88820.0,88811.0,0.01125986]
[1766723710170,0.01128,88820.0,88811.0,0.12857986]
[1766723711823,0.010731,88820.0,88811.0,0.12857986]
[1766723712157,0.010731,88820.0,88812.0,0.01125973]
[1766723712363,0.010731,88820.0,88809.0,0.05630005]
[1766723712603,0.010731,88820.0,88804.0,4e-08]
[1766723712759,0.010731,88820.0,88810.0,0.01125999]
[1766723713597,0.02198972,88820.0,88810.0,0.01125999]
[1766723713806,0.02198972,88820.0,88810.0,0.11732]
[1766723714120,0.02198972,88820.0,88810.0,0.12857999]
[1766723714667,0.02198972,88820.0,88810.0,0.11732]
[1766723714868,0.01125885,88819.0,88810.0,0.11732]
[1766723715119,0.02198972,88820.0,88810.0,0.11732]
[1766723715323,0.02198972,88820.0,88810.0,0.12857999]
[1766723715537,0.02198972,88820.0,88810.0,0.11732]
[1766723715903,0.01125885,88819.0,88793.0,0.12309]
[1766723716104,0.02198972,88820.0,88808.0,0.01126024]
[1766723716347,0.02198972,88820.0,88808.0,0.12309]
[1766723717605,0.02198972,88820.0,88809.0,0.01126012]
[1766723718630,0.010731,88820.0,88809.0,0.01126012]
[1766723719169,0.010731,88820.0,88810.0,0.01125999]
[1766723720275,0.010731,88820.0,88809.0,0.13435012]
[1766723720490,0.01125885,88819.0,88809.0,0.12309]
[1766723720867,0.02198972,88820.0,88809.0,0.13435012]
[1766723722319,0.01125885,88819.0,88809.0,0.12309]
[1766723723171,0.02198972,88820.0,88809.0,0.13435012]
[1766723724159,0.010731,88820.0,88810.0,0.01125999]
[1766723724542,0.010731,88820.0,88809.0,0.13435012]
[1766723725978,0.02198972,88820.0,88809.0,0.12309]
[1766723726180,0.01125897,88818.0,88809.0,0.12309]
[1766723726346,0.01125885,88819.0,88809.0,0.12309]
[1766723726946,0.07828359,88820.0,88809.0,0.12309]
[1766723728589,0.02198972,88820.0,88809.0,0.13435012]
[1766723728793,0.02198972,88820.0,88809.0,0.12309]
[1766723728939,0.02198972,88820.0,88809.0,0.13435012]
[1766723729140,0.01125885,88819.0,88809.0,0.12309]
[1766723730090,0.02198972,88820.0,88809.0,0.13435012]
[1766723730654,0.01125885,88819.0,88809.0,0.12309]
[1766723731193,0.02198972,88820.0,88809.0,0.12309]
[1766723731194,0.02198972,88820.0,88809.0,0.13435012]
[1766723731372,0.02198972,88820.0,88809.0,0.12309]
[1766723731571,0.01125897,88818.0,88809.0,0.12309]
[1766723731951,0.01125923,88816.0,88809.0,0.12309]
[1766723732158,0.0112591,88817.0,88809.0,0.12309]
[1766723732882,0.01125897,88818.0,88809.0,0.12309]
[1766723733092,0.0112591,88817.0,88809.0,0.12309]
[1766723733277,0.01125885,88819.0,88809.0,0.12309]
[1766723734747,0.02198972,88820.0,88809.0,0.13435012]
[1766723735442,0.010731,88820.0,88809.0,0.12309]
[1766723735614,0.02198972,88820.0,88809.0,0.13435012]
[1766723736450,0.010731,88820.0,88810.0,0.01125999]
[1766723736780,0.02198972,88820.0,88810.0,0.12309]
[1766723737171,0.06755311,88819.0,88810.0,0.12309]
[1766723737396,0.01125885,88819.0,88810.0,0.12309]
[1766723738478,0.02198972,88820.0,88810.0,0.12309]
[1766723738706,0.010731,88820.0,88810.0,0.12309]
[1766723738850,0.010731,88820.0,88810.0,0.13434999]
[1766723740842,0.02198972,88820.0,88810.0,0.12309]
[1766723741161,0.010731,88820.0,88810.0,0.13434999]
[1766723742738,0.02198972,88820.0,88811.0,0.11638]
[1766723742960,0.010731,88820.0,88811.0,0.11638]
[1766723743366,0.02198972,88820.0,88811.0,0.11638]
[1766723743566,0.010731,88820.0,88811.0,0.11638]
[1766723745301,0.02198972,88820.0,88811.0,0.11638]
[1766723747685,0.01125885,88819.0,88811.0,0.11638]
[1766723747891,0.02198972,88820.0,88811.0,0.11638]
[1766723748079,0.01125885,88819.0,88811.0,0.11638]
[1766723748426,0.02198972,88820.0,88811.0,0.11638]
[1766723748887,0.01125885,88819.0,88811.0,0.11638]
[1766723749093,0.02198972,88820.0,88811.0,0.11638]
[1766723750666,0.01125885,88819.0,88811.0,0.11638]
[1766723751126,0.010731,88820.0,88811.0,0.11638]
[1766723751326,0.02198972,88820.0,88811.0,0.11638]
[1766723751540,0.010731,88820.0,88811.0,0.11638]
[1766723753616,0.02198972,88820.0,88811.0,0.11638]
[1766723753820,0.010731,88820.0,88811.0,0.11638]
[1766723754872,0.06754873,88825.0,88809.0,0.01126012]
[1766723754873,0.01125796,88826.0,88810.0,0.12418]
[1766723755074,0.01125847,88822.0,88812.0,0.12418]
[1766723755374,0.01125834,88823.0,88812.0,0.13543973]
[1766723755594,0.01125847,88822.0,88812.0,0.12418]
[1766723757619,0.01125834,88823.0,88812.0,0.13543973]
[1766723758203,0.01125834,88823.0,88813.0,0.12418]
[1766723758522,0.01128,88825.0,88814.0,0.01125948]
[1766723758684,0.01125821,88824.0,88813.0,0.13543961]
[1766723758885,0.02253809,88825.0,88814.0,0.01125948]
[1766723759189,0.02253809,88825.0,88813.0,0.13543961]
[1766723759650,0.02253809,88825.0,88813.0,0.01125961]
[1766723759850,0.02253809,88825.0,88814.0,0.12418]
[1766723760056,0.01125821,88824.0,88814.0,0.12418]
[1766723760482,0.02253809,88825.0,88814.0,0.13543948]
[1766723761122,0.01125821,88824.0,88814.0,0.12418]
[1766723761331,0.01125821,88824.0,88814.0,0.13543948]
[1766723761556,0.01125821,88824.0,88814.0,0.12418]
[1766723761769,0.02253821,88824.0,88814.0,0.12418]
[1766723762465,0.02253821,88824.0,88814.0,0.13543948]
[1766723762466,0.01128,88824.0,88814.0,0.13543948]
[1766723762921,0.01128,88824.0,88814.0,0.12418]
[1766723763336,0.01128,88824.0,88815.0,0.13543935]
[1766723763757,0.01128,88824.0,88815.0,0.12418]
[1766723763965,0.02253821,88824.0,88815.0,0.12418]
[1766723764308,0.01128,88824.0,88815.0,0.12418]
[1766723764828,0.02253821,88824.0,88815.0,0.12418]
[1766723765444,0.01128,88824.0,88815.0,0.12418]
[1766723765997,0.02253809,88825.0,88815.0,0.12418]
[1766723766644,0.01125821,88824.0,88815.0,0.12418]
[1766723766946,0.02253809,88825.0,88815.0,0.12418]
[1766723767814,0.01125821,88824.0,88815.0,0.12418]
[1766723768157,0.02253809,88825.0,88815.0,0.12418]
[1766723768579,0.01128,88825.0,88815.0,0.13543935]
[1766723769157,0.02253809,88825.0,88815.0,0.12418]
[1766723769355,0.01125809,88825.0,88815.0,0.12418]
[1766723769575,0.01125821,88824.0,88815.0,0.12418]
[1766723769813,0.01128,88827.0,88818.0,0.01125897]
[1766723770140,0.01128,88827.0,88821.0,0.12418]
[1766723770346,0.01128,88827.0,88817.0,0.06755428]
[1766723770347,1.52e-06,88835.0,88828.0,0.12418]
[1766723770548,0.01355234,88835.0,88828.0,0.12418]
[1766723771276,0.01300234,88835.0,88829.0,0.12418]
[1766723771478,0.00161408,88835.0,88829.0,0.12418]
[1766723772688,0.00161408,88835.0,88829.0,0.13543758]
[1766723773290,0.00161408,88835.0,88829.0,0.12418]
[1766723773691,0.00161408,88835.0,88829.0,0.13543758]
[1766723774093,0.00161408,88835.0,88829.0,0.12418]
[1766723775864,0.00024477,88831.0,88829.0,0.12418]
[1766723776826,4.77e-06,88831.0,88829.0,0.11735]
[1766723777457,4.77e-06,88831.0,88830.0,0.11735]
[1766723778141,0.01128,88842.0,88834.0,0.11735]
[1766723778341,0.01125492,88850.0,88843.0,0.11735]
[1766723778602,0.04031941,88860.0,88845.0,0.11735]
[1766723778603,0.01355082,88853.0,88845.0,0.11735]
[1766723779101,0.02480511,88855.0,88845.0,0.11735]
[1766723779316,0.01128,88860.0,88850.0,0.11735]
[1766723779475,0.01125378,88859.0,88850.0,0.11735]
[1766723779887,0.01125378,88859.0,88850.0,0.116801]
[1766723780087,0.01125403,88857.0,88850.0,0.116801]
[1766723780308,0.01125378,88859.0,88850.0,0.116801]
[1766723780884,0.01125391,88858.0,88850.0,0.116801]
[1766723781081,0.01125403,88857.0,88850.0,0.116801]
[1766723781281,0.01128,88860.0,88848.0,0.01125517]
[1766723781508,0.01125391,88858.0,88845.0,0.11735]
[1766723781702,0.01125391,88858.0,88847.0,0.0112553]
[1766723781909,0.01125403,88857.0,88847.0,0.0112553]
[1766723782107,0.01125391,88858.0,88847.0,0.1286053]
[1766723782266,0.01125403,88857.0,88847.0,0.11735]
[1766723782823,0.01125416,88856.0,88847.0,0.11735]
[1766723783007,0.01125403,88857.0,88847.0,0.11735]
[1766723783402,0.01133458,88858.0,88847.0,0.1286053]
[1766723783608,0.01133458,88858.0,88847.0,0.11735]
[1766723783824,0.01125429,88855.0,88847.0,0.11735]
[1766723784068,0.00052007,88848.0,88847.0,0.1168]
[1766723784178,0.00052007,88848.0,88821.0,0.01355082]
[1766723784179,0.05627924,88843.0,88832.0,0.11735]
[1766723784378,0.01125619,88840.0,88833.0,0.01128]
[1766723784830,0.01125606,88841.0,88832.0,0.11735]
[1766723785132,0.01125517,88848.0,88832.0,0.12863]
[1766723785331,0.01125581,88843.0,88832.0,0.1398872]
[1766723785492,0.06753418,88844.0,88832.0,0.1398872]
[1766723785697,0.01125581,88843.0,88832.0,0.1398872]
[1766723785900,0.01125568,88844.0,88833.0,0.01125707]
[1766723786097,0.01125568,88844.0,88832.0,0.1398872]
[1766723786534,0.01125568,88844.0,88833.0,0.01125707]
[1766723787175,0.01125555,88845.0,88833.0,0.06754237]
[1766723788738,0.01125555,88845.0,88834.0,0.01125695]
[1766723789327,0.01125555,88845.0,88835.0,0.01125682]
[1766723789529,0.00024474,88839.0,88834.0,0.01125695]
[1766723789795,7.4e-07,88839.0,88834.0,0.01125695]
[1766723790008,7.4e-07,88839.0,88835.0,0.01125682]
[1766723790572,7.4e-07,88839.0,88834.0,0.01125695]
[1766723791231,7.4e-07,88839.0,88835.0,0.01125682]
[1766723791407,7.4e-07,88839.0,88833.0,0.12860707]
[1766723791607,7.4e-07,88839.0,88834.0,0.01125695]
[1766723791828,7.4e-07,88839.0,88836.0,0.01125669]
[1766723792058,0.01125479,88851.0,88840.0,0.01125619]
[1766723792243,0.01125403,88857.0,88851.0,0.000305]
[1766723792527,0.01128,88856.0,88847.0,0.11735]
[1766723792739,8.067e-05,88858.0,88849.0,0.01125505]
[1766723792888,0.01125403,88857.0,88850.0,0.11735]
[1766723793089,0.01125429,88855.0,88850.0,0.11735]
[1766723793314,0.01125416,88856.0,88850.0,0.11735]
[1766723793532,0.01133458,88858.0,88850.0,0.11735]
[1766723793732,0.06752421,88857.0,88850.0,0.11735]
[1766723794489,0.01125429,88855.0,88850.0,0.11735]
[1766723795289,0.01125441,88854.0,88850.0,0.11735]
[1766723795525,0.01125429,88855.0,88850.0,0.11735]
[1766723795739,0.01125416,88856.0,88850.0,0.11735]
[1766723795959,0.01125403,88857.0,88850.0,0.11735]
[1766723796166,8.067e-05,88858.0,88850.0,0.11735]
[1766723797641,8.067e-05,88858.0,88850.0,0.12860492]
[1766723798041,0.00036706,88851.0,88850.0,0.11735]
[1766723798352,6e-08,88851.0,88850.0,0.11735]
[1766723798645,6e-08,88851.0,88850.0,0.17362462]
[1766723798784,0.01125289,88866.0,88849.0,0.01125505]
[1766723798785,0.01128,88863.0,88855.0,0.11735]
[1766723799424,0.01125302,88865.0,88855.0,0.11735]
[1766723799741,0.02253315,88864.0,88855.0,0.11735]
[1766723800101,0.01128,88865.0,88855.0,0.11735]
[1766723800300,0.01125302,88865.0,88855.0,0.11735]
[1766723800552,0.0112534,88862.0,88855.0,0.11735]
[1766723800737,0.01125353,88861.0,88855.0,0.11735]
[1766723800909,0.01125353,88861.0,88855.0,0.117289]
[1766723801233,0.06752161,88861.0,88855.0,0.117289]
[1766723801392,0.01125365,88860.0,88855.0,0.117289]
[1766723801588,0.01125378,88859.0,88855.0,0.117289]
[1766723802391,0.01125365,88860.0,88855.0,0.117289]
[1766723802599,0.01125378,88859.0,88855.0,0.117289]
[1766723803800,0.01125365,88860.0,88855.0,0.117289]
[1766723804003,0.01125353,88861.0,88855.0,0.117289]
[1766723804206,0.01125378,88859.0,88855.0,0.117289]
[1766723804414,0.01125391,88858.0,88855.0,0.117289]
[1766723805198,0.06752382,88858.0,88855.0,0.11707301]
[1766723805400,0.01125391,88858.0,88855.0,0.11707301]
[1766723805772,0.01125429,88855.0,88847.0,0.01128]
[1766723805963,0.01125403,88857.0,88848.0,0.11831]
[1766723806169,0.01125416,88856.0,88848.0,0.11831]
[1766723806534,0.01125429,88855.0,88848.0,0.11831]
[1766723806691,0.01125416,88856.0,88848.0,0.11831]
[1766723806894,0.01125429,88855.0,88848.0,0.11831]
[1766723807106,0.01125441,88854.0,88848.0,0.11831]
[1766723807698,0.01125429,88855.0,88848.0,0.11831]
[1766723808046,0.05627048,88857.0,88848.0,0.11831]
[1766723808047,0.01125403,88857.0,88848.0,0.11831]
[1766723808216,0.01125441,88854.0,88848.0,0.11831]
[1766723808426,0.01125429,88855.0,88848.0,0.11831]
[1766723808843,0.06752628,88855.0,88848.0,0.11831]
[1766723809045,0.01125454,88853.0,88848.0,0.11831]
[1766723809214,0.01125441,88854.0,88848.0,0.11831]
[1766723811022,0.01125454,88853.0,88848.0,0.11831]
[1766723811231,0.01125441,88854.0,88848.0,0.11831]
[1766723811640,0.01125454,88853.0,88848.0,0.11831]
[1766723812042,0.01125441,88854.0,88848.0,0.11831]
[1766723812248,0.01125454,88853.0,88848.0,0.11831]
[1766723812440,0.01125429,88855.0,88848.0,0.11831]
[1766723812671,0.01125441,88854.0,88848.0,0.11831]
[1766723813853,0.01125429,88855.0,88848.0,0.11831]
[1766723814471,0.05651413,88859.0,88848.0,0.11831]
[1766723814472,0.00024463,88859.0,88848.0,0.11831]
[1766723814699,0.00024463,88859.0,88855.0,0.118859]
[1766723814898,0.01125391,88858.0,88855.0,0.11831]
[1766723815579,0.00024463,88859.0,88855.0,0.11831]
[1766723815898,0.06752346,88858.0,88855.0,0.11831]
[1766723816283,0.06752346,88858.0,88855.0,0.11776]
[1766723817429,0.01149841,88859.0,88855.0,0.11776]
[1766723817790,0.01125391,88858.0,88855.0,0.11776]
[1766723818710,0.05627018,88857.0,88855.0,0.11776]
[1766723819108,0.01125391,88858.0,88855.0,0.11776]
[1766723820662,0.06752017,88863.0,88847.0,0.02261597]
[1766723820663,0.01128,88864.0,88859.0,0.11785628]
[1766723821083,0.0112534,88862.0,88859.0,0.11785628]
[1766723821720,0.01128,88864.0,88839.0,0.03377695]
[1766723821721,0.01125441,88854.0,88849.0,0.01128]
[1766723822027,0.01125467,88852.0,88849.0,0.01128]
[1766723822234,0.06752838,88852.0,88849.0,0.01128]
[1766723822437,0.05627323,88853.0,88849.0,0.12959]
[1766723822613,0.01125467,88852.0,88849.0,0.12959]
[1766723822822,0.01125454,88853.0,88849.0,0.12959]
[1766723823475,0.01125429,88855.0,88849.0,0.12959]
[1766723823684,0.01125454,88853.0,88849.0,0.12959]
[1766723824169,0.06752802,88852.0,88849.0,0.12959]
[1766723824573,0.01125467,88852.0,88849.0,0.12959]
[1766723826075,0.01125454,88853.0,88849.0,0.12959]
[1766723826678,0.01125441,88854.0,88849.0,0.12959]
[1766723826974,0.01125429,88855.0,88853.0,0.000549]
[1766723827195,0.01125429,88855.0,88849.0,0.12959]
[1766723827339,0.01125441,88854.0,88849.0,0.12959]
[1766723827788,0.01125454,88853.0,88849.0,0.12959]
[1766723827994,0.01125441,88854.0,88849.0,0.12959]
[1766723828490,0.01125467,88852.0,88849.0,0.11831]
[1766723828989,0.06752839,88852.0,88849.0,0.11831]
[1766723829187,0.01125467,88852.0,88849.0,0.11831]
[1766723829952,0.01125492,88850.0,88847.0,8.067e-05]
[1766723830165,0.01125644,88838.0,88828.0,0.01125771]
[1766723830369,0.01125707,88833.0,88830.0,0.11831]
[1766723830573,0.01125707,88833.0,88817.0,0.0562991]
[1766723830574,0.05628877,88828.0,88823.0,0.11831]
[1766723830742,0.0562909,88825.0,88823.0,7e-07]
[1766723830950,0.01125783,88827.0,88823.0,7e-07]
[1766723831177,0.01125758,88829.0,88823.0,7e-07]
[1766723831632,0.0337911,88842.0,88823.0,7e-07]
[1766723831633,0.01125644,88838.0,88825.0,0.05629045]
[1766723831845,0.01125669,88836.0,88829.0,0.11886]
[1766723832030,0.01125669,88836.0,88824.0,0.01125821]
[1766723832031,0.01125682,88835.0,88824.0,0.01125821]
[1766723832189,0.01125682,88835.0,88825.0,0.01125809]
[1766723832382,0.01128,88834.0,88827.0,0.01125783]
[1766723832580,0.01128,88834.0,88823.0,0.1183107]
[1766723832581,0.05628538,88833.0,88823.0,0.1183107]
[1766723832799,0.01125733,88831.0,88823.0,0.1183107]
[1766723833210,0.01125758,88829.0,88823.0,0.1183107]
[1766723833412,0.01125745,88830.0,88823.0,0.1183107]
[1766723833686,0.05628855,88828.0,88823.0,0.1183107]
[1766723833984,0.05628855,88828.0,88819.0,0.0002]
[1766723833985,0.0005483,88823.0,88819.0,0.0002]
[1766723834189,0.01125783,88827.0,88819.0,0.0002]
[1766723834394,0.06754626,88828.0,88819.0,0.0002]
[1766723834680,0.01125796,88826.0,88819.0,0.0002]
[1766723834882,0.06755134,88822.0,88819.0,0.0002]
[1766723835041,0.06755134,88822.0,88815.0,0.01128]
[1766723835042,0.01125847,88822.0,88815.0,0.01128]
[1766723835680,0.01125859,88821.0,88815.0,0.01128]
[1766723835887,0.02480929,88822.0,88815.0,0.01128]
[1766723836090,0.01355082,88822.0,88815.0,0.01128]
[1766723836640,0.02480929,88822.0,88815.0,0.01128]
[1766723837094,0.01355082,88822.0,88815.0,0.01128]
[1766723837712,0.01355082,88822.0,88815.0,0.02253935]
[1766723839055,0.01355082,88822.0,88815.0,0.01128]
[1766723840074,0.01355082,88822.0,88813.0,0.13343961]
[1766723840309,0.01355082,88822.0,88814.0,0.01125948]
[1766723840510,0.01355082,88822.0,88814.0,0.13343948]
[1766723840628,0.01355082,88822.0,88814.0,0.12218]
[1766723841240,0.01355082,88822.0,88814.0,0.13343948]
[1766723842918,0.01355082,88822.0,88814.0,0.12218]
[1766723843123,0.02480929,88822.0,88814.0,0.12218]
[1766723843329,0.01355082,88822.0,88814.0,0.12218]
[1766723843545,100.0,89052.0,88821.0,0.01125859]
[1766723843546,0.030387,88859.0,88821.0,0.01125859]
[1766723843761,0.06753391,88845.0,88837.0,0.000751]
[1766723843973,0.01125606,88841.0,88832.0,0.12218]
[1766723844179,0.01125606,88841.0,88829.0,0.01128]
[1766723844180,0.01125657,88837.0,88829.0,0.01128]
[1766723844397,0.01125682,88835.0,88823.0,0.01125834]
[1766723844602,0.06776194,88839.0,88835.0,0.000201]
[1766723844603,0.00823035,88839.0,88835.0,0.000201]
[1766723845033,0.00823035,88839.0,88832.0,0.1334372]
[1766723845034,0.00823035,88839.0,88833.0,0.0675422]
[1766723845228,0.00768035,88839.0,88833.0,0.01125707]
[1766723845436,0.01125581,88843.0,88833.0,0.01125707]
[1766723845640,0.02253581,88843.0,88834.0,0.12218]
[1766723845841,0.01128,88843.0,88834.0,0.13343695]
[1766723846075,0.06753198,88847.0,88834.0,0.13343695]
[1766723846076,0.05647544,88849.0,88835.0,0.01125682]
[1766723846299,0.01128,88845.0,88839.0,0.01125631]
[1766723846503,0.01128,88845.0,88839.0,0.12218]
[1766723847513,0.01128,88845.0,88839.0,0.13343631]
[1766723848056,0.01128,88845.0,88839.0,0.12218]
[1766723848639,0.01063859,88845.0,88839.0,0.12218]
[1766723848808,0.01125581,88843.0,88829.0,0.02273758]
[1766723849036,0.01125606,88841.0,88831.0,0.01125733]
[1766723849197,0.01125606,88841.0,88830.0,0.12218]
[1766723849395,0.23575169,88845.0,88830.0,0.12218]
[1766723849396,0.01125657,88837.0,88830.0,0.12218]
[1766723849585,0.01125657,88837.0,88829.0,0.0002]